[Event "SixDays Budapest IM-B January 2024"]
[Site "Budapest"]
[Date "2024.01.29"]
[Round "5.2"]
[White "Nemeth, Zoltan"]
[Black "Nemitz, Alfred"]
[Result "1/2-1/2"]
[ECO "A06"]
[WhiteElo "2194"]
[BlackElo "2223"]
[Annotator "TA"]
[PlyCount "89"]
[EventDate "2024.01.26"]
[EventType "tourn"]
[EventCountry "HUN"]
[SourceTitle "playchess.com"]
[Source "ChessBase"]
[SourceQuality "1"]
[TimeControl "5400+30"]

{[%evp 9,89,29,20,16,10,6,24,18,28,-2,3,-1,0,-6,31,36,29,20,32,18,25,27,59,12,27,0,22,14,50,32,21,25,101,24,20,7,16,0,0,0,0,0,0,0,0,0,0,0,0,0,0,0,0,0,0,0,0,0,0,0,0,0,0,0,0,0,0,0,0,0,0,0,0,0,0,0,0,0,0,0,0,0]} 1. Nf3 {[%emt 0:00:05]} d5 {[%emt 0:00:04]} 2. d4 {[%emt 0:00:44]} c6 {[%emt 0:00:12]} 3. c3 {[%emt 0:01:11]} Nf6 {[%emt 0:00:20]} 4. Bf4 {[%emt 0:00:07]} h6 {[%emt 0:01:50]} 5. e3 {[%emt 0:00:27]} Bf5 {[%emt 0:00:09]} 6. Bd3 {[%emt 0:00:40]} Bxd3 {[%emt 0:00:51]} 7. Qxd3 {[%emt 0:00:07]} Nh5 {[%emt 0:00:45]} 8. Nbd2 {[%emt 0:00:42] White has an edge.} Nd7 {[%emt 0:00:23]} 9. h3 {[%emt 0:04:37]} Nxf4 {[%emt 0:03:51]} 10. exf4 {[%emt 0:00:10]} e6 {[%emt 0:00:57]} 11. f5 {[%emt 0:01:01]} Qf6 {[%emt 0:04:01]} 12. fxe6 {[%emt 0:00:06]} Qxe6+ {[%emt 0:00:35]} 13. Kf1 {[%emt 0:02:05]} O-O-O {[%emt 0:00:37]} 14. Re1 {[%emt 0:03:18]} Qf6 {[%emt 0:01:34]} 15. g3 {[%emt 0:00:10]} g5 {[%emt 0:00:50]} 16. Ne5 {[%emt 0:01:21]} (16. Kg2 $14) 16... Bd6 {[%emt 0:02:02]} 17. Nxd7 {[%emt 0:00:27]} Rxd7 {[%emt 0:00:38]} 18. Kg2 {[%emt 0:00:46]} Kb8 {[%emt 0:01:16]} (18... Re7 {simplifies} 19. Rxe7 Qxe7 20. Nf3 Re8) 19. Re3 {[%emt 0:00:32]} Re7 {[%emt 0:02:46]} 20. Rhe1 {[%emt 0:02:26]} Rhe8 {[%emt 0:03:09]} (20... Rxe3 $11 {keeps the balance.} 21. Rxe3 h5) 21. Rxe7 {[%emt 0:00:35]} (21. Rf3 $16 Qg7 22. Rxe7 Bxe7 23. Qf5) 21... Rxe7 $11 {[%emt 0:00:19]} 22. Rxe7 {[%emt 0:01:00] The position is equal.} Qxe7 $16 {[%emt 0:00:35][%mdl 4096] Endgame. KQB-KQN} 23. Kf1 {[%emt 0:01:05]} Qe6 {[%emt 0:01:05]} 24. g4 {[%emt 0:02:47]} Bf4 {[%emt 0:01:04]} 25. Nf3 {[%emt 0:03:57]} h5 {[%emt 0:01:18]} 26. Qe2 {[%emt 0:00:49]} Qxe2+ {[%emt 0:03:02]} 27. Kxe2 {[%emt 0:00:06]} hxg4 {[%emt 0:02:56]} 28. hxg4 $11 {[%emt 0:00:06] KB-KN} f6 {[%emt 0:00:24]} 29. Ne1 {[%emt 0:01:29]} Kc7 {[%emt 0:00:43]} 30. Nd3 {[%emt 0:01:52] [#] Threatens to win with Nxf4.} Bd6 {[%emt 0:00:02]} 31. b3 {[%emt 0:00:53]} b6 {[%emt 0:01:27]} 32. f3 {[%emt 0:01:40]} Kd7 {[%emt 0:00:53]} 33. Kd2 {[%emt 0:00:32]} Kc7 {[%emt 0:01:15]} 34. Kc2 {[%emt 0:00:37]} Kd7 {[%emt 0:01:06]} 35. a4 {[%emt 0:00:49]} Kc7 {[%emt 0:01:09]} 36. c4 {[%emt 0:00:50]} Kb7 {[%emt 0:03:00]} 37. Kc3 {[%emt 0:00:20]} Kc7 {[%emt 0:01:04]} 38. b4 {[%emt 0:03:57]} a6 {[%emt 0:12:03]} 39. a5 {[%emt 0:09:26]} bxa5 {[%emt 0:10:07]} 40. bxa5 {[%emt 0:00:10]} Kb7 {[%emt 0:01:14]} 41. Kb3 {[%emt 0:02:05]} Kc7 {[%emt 0:01:32]} 42. Kc3 {[%emt 0:13:16]} Kb7 {[%emt 0:00:44]} 43. Nc1 {[%emt 0:00:37]} Bg3 {[%emt 0:01:31]} 44. Nd3 {[%emt 0:09:37] Against Be1+} Bd6 {[%emt 0:00:20]} 45. Kb3 {[%emt 0:07:03] Weighted Error Value: White=0.11 (very precise) /Black=0.09 (flawless) .  Mistake:       	White=2     	Black=1      Inaccurate:     	White=2     	Black=3      OK:         	White=9     	Black=18     Best:        	White=1     	---} 1/2-1/2

[Event "SixDays Budapest IM-B January 2024"]
[Site "Budapest"]
[Date "2024.01.29"]
[Round "5.3"]
[White "Kolimar, Kristof Pal"]
[Black "Mouhamad, Joachim"]
[Result "1/2-1/2"]
[ECO "A13"]
[WhiteElo "2304"]
[BlackElo "2316"]
[Annotator "RC"]
[PlyCount "135"]
[EventDate "2024.01.26"]
[EventType "tourn"]
[EventCountry "HUN"]
[SourceTitle "playchess.com"]
[Source "ChessBase"]
[SourceQuality "1"]
[TimeControl "5400+30"]

1. Nf3 {[%emt 0:00:02]} d5 {[%emt 0:01:53]} 2. c4 {[%emt 0:00:06]} e6 {[%emt 0:03:41]} 3. g3 {[%emt 0:00:14]} c5 {[%emt 0:05:07]} 4. cxd5 {[%emt 0:00:15]} Qxd5 {[%emt 0:02:43]} 5. Nc3 {[%emt 0:00:42]} Qd8 {[%emt 0:00:32]} 6. d4 {[%emt 0:03:44]} Nf6 {[%emt 0:01:51]} 7. Bf4 {[%emt 0:03:27]} Be7 {[%emt 0:11:00]} 8. dxc5 {[%emt 0:01:22]} O-O {[%emt 0:00:36]} 9. Bg2 {[%emt 0:05:06]} Bxc5 {[%emt 0:03:36]} 10. O-O {[%emt 0:04:43]} Nc6 {[%emt 0:03:51]} 11. Rc1 {[%emt 0:04:41]} Qe7 {[%emt 0:02:54]} 12. Ne5 {[%emt 0:08:02]} Nxe5 {[%emt 0:01:59]} 13. Bxe5 {[%emt 0:00:03]} Rd8 {[%emt 0:04:28]} 14. Qc2 {[%emt 0:05:25]} Bd6 {[%emt 0:04:49]} 15. Bxd6 {[%emt 0:01:07]} Rxd6 {[%emt 0:00:06]} 16. Nb5 {[%emt 0:02:25]} Rd8 {[%emt 0:00:26]} 17. Rfd1 {[%emt 0:05:28]} Rxd1+ {[%emt 0:09:57]} 18. Rxd1 {[%emt 0:00:56]} Ne8 {[%emt 0:08:31]} 19. Qd2 {[%emt 0:11:42]} Kf8 {[%emt 0:04:09]} 20. Qe3 {[%emt 0:05:24]} a6 {[%emt 0:06:15]} 21. Nc3 {[%emt 0:04:39]} Rb8 {[%emt 0:02:49]} 22. Na4 {[%emt 0:06:16]} b5 {[%emt 0:01:32]} 23. Nc5 {[%emt 0:07:09]} b4 {[%emt 0:00:26]} 24. Bc6 {[%emt 0:01:06]} Nf6 {[%emt 0:05:32]} 25. Nd3 {[%emt 0:08:23]} h5 {[%emt 0:07:56]} 26. Ne5 {[%emt 0:01:16]} Ng4 {[%emt 0:00:28]} 27. Qd4 {[%emt 0:01:32]} Nxe5 {[%emt 0:04:38]} 28. Qxe5 {[%emt 0:00:02]} Rb6 {[%emt 0:00:13]} 29. Qxh5 {[%emt 0:00:26]} Kg8 {[%emt 0:00:29]} 30. Qf3 {[%emt 0:05:03]} Qc7 {[%emt 0:00:52]} 31. Be4 {[%emt 0:00:38]} f5 {[%emt 0:00:31]} 32. Bd3 {[%emt 0:00:13]} Bb7 {[%emt 0:00:32]} 33. Qe3 {[%emt 0:00:11]} Rc6 {[%emt 0:00:51]} 34. b3 {[%emt 0:01:15]} Qd6 {[%emt 0:00:45]} 35. f3 {[%emt 0:00:52]} a5 {[%emt 0:01:03]} 36. Kf2 {[%emt 0:00:58]} Kf7 {[%emt 0:00:13]} 37. Qa7 {[%emt 0:00:27]} Qc5+ {[%emt 0:00:54]} 38. Qxc5 {[%emt 0:00:02]} Rxc5 {[%emt 0:00:01]} 39. Bxf5 {[%emt 0:01:51]} exf5 {[%emt 0:00:01]} 40. Rd7+ {[%emt 0:00:01]} Kf6 {[%emt 0:00:07]} 41. Rxb7 {[%emt 0:00:06]} Rc2 {[%emt 0:00:13]} 42. Rb6+ {[%emt 0:00:05]} Ke7 {[%emt 0:00:50]} 43. Rb5 {[%emt 0:00:18]} Rxa2 {[%emt 0:00:05]} 44. Rxf5 {[%emt 0:00:02]} Kd6 {[%emt 0:00:36]} 45. Rg5 {[%emt 0:00:29]} Ra3 {[%emt 0:01:14]} 46. h4 {[%emt 0:00:34]} Rxb3 {[%emt 0:01:02]} 47. Rxa5 {[%emt 0:00:06]} Kc6 {[%emt 0:00:27]} 48. Rg5 {[%emt 0:01:42]} Ra3 {[%emt 0:00:55]} 49. Rxg7 {[%emt 0:01:12]} b3 {[%emt 0:00:00]} 50. Rg4 {[%emt 0:02:38]} Ra5 {[%emt 0:00:38]} 51. Rb4 {[%emt 0:00:51]} Rb5 {[%emt 0:00:06]} 52. Rxb3 {[%emt 0:00:04]} Rxb3 {[%emt 0:00:05]} 53. h5 {[%emt 0:00:16]} Kd5 {[%emt 0:00:14]} 54. g4 {[%emt 0:00:20]} Ke5 {[%emt 0:00:18]} 55. Kg3 {[%emt 0:00:27]} Re3 {[%emt 0:01:45]} 56. h6 {[%emt 0:00:49]} Kf6 {[%emt 0:00:01]} 57. Kf2 {[%emt 0:00:13]} Ra3 {[%emt 0:00:42]} 58. f4 {[%emt 0:00:29]} Kg6 {[%emt 0:00:51]} 59. g5 {[%emt 0:00:16]} Kf5 {[%emt 0:00:17]} 60. e3 {[%emt 0:00:01]} Ra7 {[%emt 0:00:56]} 61. Kg3 {[%emt 0:00:52]} Ra1 {[%emt 0:00:42]} 62. Kf3 {[%emt 0:00:48]} Rf1+ {[%emt 0:00:39]} 63. Kg2 {[%emt 0:00:15]} Ra1 {[%emt 0:00:03]} 64. e4+ {[%emt 0:00:46]} Kg6 {[%emt 0:00:55]} 65. Kf3 {[%emt 0:00:14]} Rf1+ {[%emt 0:00:14]} 66. Ke3 {[%emt 0:00:36]} Rd1 {[%emt 0:00:31]} 67. Ke2 {[%emt 0:00:57]} Rh1 {[%emt 0:00:29]} 68. Ke3 {[%emt 0:00:40]} 1/2-1/2

[Event "SixDays Budapest IM-B January 2024"]
[Site "Budapest"]
[Date "2024.01.29"]
[Round "5.4"]
[White "Semprun Martinez, Fernando"]
[Black "Varadi, Viktor"]
[Result "1/2-1/2"]
[ECO "A88"]
[WhiteElo "2071"]
[BlackElo "2368"]
[Annotator "TA"]
[PlyCount "76"]
[EventDate "2024.01.26"]
[EventType "tourn"]
[EventCountry "HUN"]
[SourceTitle "playchess.com"]
[Source "ChessBase"]
[SourceQuality "1"]
[TimeControl "5400+30"]

{[%evp 19,76,34,27,15,27,35,38,52,53,45,35,52,52,56,43,61,105,56,93,97,42,0,0,0,20,39,203,19,27,19,2,14,14,0,0,0,1,0,53,42,42,49,51,48,49,47,50,39,69,69,108,108,106,58,137,137,114,42,119]} 1. d4 {[%emt 0:00:02]} f5 {[%emt 0:00:10]} 2. g3 {[%emt 0:00:05]} Nf6 {[%emt 0:00:06]} 3. Bg2 {[%emt 0:00:08]} g6 {[%emt 0:00:09]} 4. Nf3 {[%emt 0:00:02]} Bg7 {[%emt 0:00:08]} 5. O-O {[%emt 0:00:07]} O-O {[%emt 0:00:06]} 6. c4 {[%emt 0:00:03]} d6 {[%emt 0:00:07]} 7. Nc3 {[%emt 0:00:02]} c6 {[%emt 0:00:23]} 8. d5 {[%emt 0:00:11]} cxd5 {[%emt 0:00:29]} 9. cxd5 {[%emt 0:00:39]} Na6 {[%emt 0:01:09]} 10. Nd4 {[%emt 0:01:57]} Nc5 {[%emt 0:07:27]} 11. b4 {[%emt 0:06:54]} Nce4 {[%emt 0:03:31]} 12. Nxe4 {[%emt 0:02:05]} Nxe4 {[%emt 0:00:06]} 13. Be3 {[%emt 0:01:10]} Nf6 {[%emt 0:06:05]} 14. Rc1 {[%emt 0:04:39]} Ng4 {[%emt 0:02:32]} 15. Bf4 {[%emt 0:01:30]} Qb6 {[%emt 0:00:57][%csl LRb4,LRd4]} 16. Ne6 {[%emt 0:00:55]} Bxe6 {[%emt 0:00:23]} 17. dxe6 {[%emt 0:00:01]} Rac8 {[%emt 0:07:00]} 18. a3 {[%emt 0:09:09]} (18. Rxc8 $1 $16 Rxc8 19. Qa4) 18... Bb2 {[%emt 0:21:07]} 19. Rxc8 {[%emt 0:11:54]} Rxc8 {[%emt 0:00:05]} 20. Qb3 {[%emt 0:01:46]} (20. h3 $5 Nf6 $8 21. Be3 $11) 20... Bd4 {[%emt 0:02:26][%cal Rd4f2]} 21. e3 {[%emt 0:01:29]} (21. h3 {looks sharper.} Rc3 22. Qa4 Bxf2+ 23. Kh1) 21... Bf6 {[%emt 0:03:07] Strongly threatening ...g5.} 22. h3 {[%emt 0:04:26]} Nxf2 {[%emt 0:08:31]} ({Better is} 22... Ne5 $1 $14) 23. Rxf2 $2 {[%emt 0:02:14]} (23. Kxf2 g5 24. Bxg5 Bxg5 $11) ({White must play} 23. Bh6 $1 $18) 23... g5 $11 {[%emt 0:00:07] [#]} 24. Kh2 $1 {[%emt 0:03:03]} gxf4 {[%emt 0:03:55]} 25. Rxf4 {[%emt 0:01:54]} Qb5 {[%emt 0:07:07]} (25... Kg7 {seems wilder.} 26. Qd5 Qxe3 27. Qxf5 Rc3) 26. Qd1 {[%emt 0:01:43]} Qe5 {[%emt 0:02:25]} 27. e4 {[%emt 0:07:53]} Qxe6 {[%emt 0:03:20]} 28. exf5 {[%emt 0:01:17]} Qe3 {[%emt 0:01:29]} (28... Qa2 $11) 29. Qd5+ $14 {[%emt 0:04:21]} Kh8 $1 {[%emt 0:00:16]} 30. Qxb7 {[%emt 0:00:55]} Rg8 {[%emt 0:00:25]} 31. Qf3 {[%emt 0:02:58]} Qxf3 {[%emt 0:02:38]} 32. Rxf3 {[%emt 0:03:57][%mdl 4096] Endgame. KRB-KRB} Be5 {[%emt 0:02:20]} 33. Rd3 {[%emt 0:01:12]} h5 {[%emt 0:00:45]} 34. h4 $1 {[%emt 0:02:27]} Rg4 {[%emt 0:00:34]} 35. Kh3 {[%emt 0:00:31]} Kg7 {[%emt 0:00:42]} 36. Bc6 {[%emt 0:00:51]} (36. Bd5 $16) 36... Kh6 {[%emt 0:00:23] [#]} ({Black should play} 36... Rc4 $1 $14 37. Bd5 Rc1) 37. b5 $1 $16 {[%emt 0:00:57]} Rc4 {[%emt 0:01:19] [#]} 38. Rb3 {[%emt 0:00:56]} ({White should try} 38. a4 $1 $16) 38... Bd4 {Weighted Error Value: White=0.16 (very precise) /Black=0.21 (precise) .  Loses game:     	---       	Black=1      Missed win:     	White=1     	---        Mistake:       	White=3     	Black=3      Inaccurate:     	White=1     	Black=4      OK:         	White=9     	Black=13     Best:        	White=2     	Black=2      Strong:       	White=2     	Black=1} (38... Rc1 $14) 1/2-1/2

[Event "SixDays Budapest IM-B January 2024"]
[Site "Budapest"]
[Date "2024.01.29"]
[Round "5.5"]
[White "Srinath, Rao S.V."]
[Black "Egresi, Mate"]
[Result "1-0"]
[ECO "B15"]
[WhiteElo "2260"]
[BlackElo "2389"]
[Annotator "TA"]
[PlyCount "89"]
[EventDate "2024.01.26"]
[EventType "tourn"]
[EventCountry "HUN"]
[SourceTitle "playchess.com"]
[Source "ChessBase"]
[SourceQuality "1"]
[TimeControl "5400+30"]

{[%evp 9,89,20,17,-12,-27,-22,-18,-4,11,9,11,14,9,11,320,319,297,302,302,263,261,259,250,249,243,242,265,240,264,264,263,252,340,306,337,358,336,321,395,381,385,395,401,389,422,418,433,425,481,491,507,513,522,476,518,509,504,489,459,428,29973,29975,29975,29976,29978,29978,29979,29980,29982,29983,29984,29985,29985,29986,29986,29987,29987,29988,29988,29989,29989,29990]} 1. e4 {[%emt 0:00:03]} c6 {[%emt 0:00:05]} 2. d4 {[%emt 0:02:28]} d5 {[%emt 0:00:04]} 3. Nc3 {[%emt 0:00:04]} dxe4 {[%emt 0:00:05]} 4. Nxe4 {[%emt 0:00:03]} Nf6 {[%emt 0:00:04]} 5. Nxf6+ {[%emt 0:00:04]} exf6 {[%emt 0:00:03]} 6. Bd3 {[%emt 0:00:05]} Qxd4 {[%emt 0:00:16]} 7. Nf3 {[%emt 0:00:39]} Qd8 {[%emt 0:00:04]} 8. O-O {[%emt 0:01:35] The position is equal.} Bd6 {[%emt 0:14:50]} 9. Re1+ {[%emt 0:00:34]} Be6 {[%emt 0:00:02]} 10. Nd4 {[%emt 0:00:29]} Bxh2+ $1 {[%emt 0:10:07]} 11. Kf1 $1 {[%emt 0:03:25]} Qd5 {[%emt 0:31:21][%mdl 8192] [#] This move loses the game for Black.} (11... Qxd4 $11 {and Black has nothing to worry.} 12. Rxe6+ Kf8 (12... fxe6 13. Bg6+ hxg6 14. Qxd4 $16)) 12. Qg4 {[%emt 0:12:12]} Nd7 {[%emt 0:08:32][%cal Bb8d7,Bd7e5,Be5g4][%mdl 32]} 13. Nxe6 {[%emt 0:09:15]} (13. Qxg7 O-O-O 14. Nxe6 fxe6 $15) 13... fxe6 {[%emt 0:00:11]} 14. Bc4 {[%emt 0:01:29][%cal Bd3c4,Bc4d5,Bd5e6,Be6g4][%mdl 32]} (14. Qxe6+ Qxe6 15. Rxe6+ Kf7 $14) (14. Qxg7 O-O-O 15. Be4 Qc4+ 16. Bd3 Qd5 $17) 14... Ne5 {[%emt 0:14:32]} 15. Bxd5 {[%emt 0:01:20]} (15. Qxe6+ Qxe6 16. Bxe6 h5 $14) 15... Nxg4 {[%emt 0:00:06]} 16. Bxe6 {[%emt 0:00:11]} Ne5 {[%emt 0:00:05]} 17. g3 {[%emt 0:01:32]} h5 {[%emt 0:00:37]} 18. Kg2 {[%emt 0:04:33][%cal Oc1f4] Black must now prevent Bf4!} h4 {[%emt 0:00:06]} 19. Bf4 {[%emt 0:01:29][%cal Of4e5] Strongly threatening Bxe5!} (19. Kxh2 $2 Nf3+ 20. Kh3 Nxe1 $19) (19. Rxe5 $6 fxe5 20. Kxh2 hxg3+ 21. Kxg3 Rh1) 19... hxg3 {[%emt 0:00:53]} 20. fxg3 {[%emt 0:00:41]} Ke7 {[%emt 0:02:29]} 21. Bg4 {[%emt 0:07:19]} Rad8 {[%emt 0:06:12]} 22. Rxe5+ {[%emt 0:10:50]} (22. Bh3 Bxg3 23. Kxg3 Rd5) 22... fxe5 {[%emt 0:00:22]} 23. Bg5+ {[%emt 0:00:05] This pair of bishops is nice.} Kf7 {[%emt 0:01:13]} 24. Rf1+ {[%emt 0:00:08]} ({Resist} 24. Bxd8 Rxd8 25. Rd1 (25. Kxh2 Rd2+ 26. Kh3 Rxc2 $18) (25. Rf1+ Ke7 $18) 25... Rxd1 26. Bxd1 Bxg3 27. Kxg3 Ke6) 24... Kg6 {[%emt 0:00:20]} 25. Bxd8 {[%emt 0:00:05]} Rxd8 $18 {[%emt 0:00:21][%mdl 4096] Endgame. KRB-KRB} 26. Bf5+ {[%emt 0:00:30]} Kg5 {[%emt 0:00:09]} 27. Kxh2 {[%emt 0:00:31] KRB-KR} c5 {[%emt 0:04:49]} 28. Kh3 {[%emt 0:06:53]} Rd4 {[%emt 0:00:19]} 29. Bc8 {[%emt 0:09:00]} g6 {[%emt 0:00:27]} 30. Rf7 {[%emt 0:04:23]} Rd2 {[%emt 0:01:00]} 31. Rxb7 {[%emt 0:00:13]} Rxc2 {[%emt 0:00:05]} 32. a4 {[%emt 0:02:13]} e4 {[%emt 0:02:33]} 33. Re7 {[%emt 0:07:25]} Rxb2 {[%emt 0:00:08]} 34. Rxe4 {[%emt 0:00:07]} Rb4 {[%emt 0:00:04]} (34... Ra2 $18 35. Re5+ Kh6) 35. Rxb4 {[%emt 0:03:07] White mates.} cxb4 {[%emt 0:00:05] KB-K3P} 36. Be6 {[%emt 0:01:21]} a5 {[%emt 0:00:21]} 37. Bg8 {[%emt 0:00:26]} Kf5 {[%emt 0:02:16]} 38. Kh4 {[%emt 0:00:07]} Ke4 {[%emt 0:00:04]} 39. Kg5 {[%emt 0:00:23]} Kd4 {[%emt 0:00:05]} 40. Kxg6 {[%emt 0:00:24]} Kc3 {[%emt 0:00:03]} 41. g4 {[%emt 0:00:44][%cal Bg3g4,Bg4g5][%mdl 32]} b3 {[%emt 0:00:09]} 42. g5 {[%emt 0:00:42]} b2 {[%emt 0:00:07]} 43. Ba2 {[%emt 0:00:05]} Kb4 {[%emt 0:00:11]} 44. Kf6 {[%emt 0:00:33]} b1=N {[%emt 0:00:04]} 45. Bxb1 {[%emt 0:00:06] Weighted Error Value: White=0.05 (flawless) /Black=0.53.  Loses game:     	---       	Black=1      Mistake:       	---       	Black=1      Inaccurate:     	---       	Black=1      OK:         	White=20    	Black=10     Best:        	White=2     	Black=2      Strong:       	White=1     	Black=1} 1-0

[Event "SixDays Budapest IM-B January 2024"]
[Site "Budapest"]
[Date "2024.01.30"]
[Round "6.1"]
[White "Sgircea, Silvia-Raluca"]
[Black "Egresi, Mate"]
[Result "0-1"]
[ECO "D70"]
[WhiteElo "2242"]
[BlackElo "2389"]
[Annotator "TA"]
[PlyCount "100"]
[EventDate "2024.01.26"]
[EventType "tourn"]
[EventCountry "HUN"]
[SourceTitle "playchess.com"]
[Source "ChessBase"]
[SourceQuality "1"]
[TimeControl "5400+30"]

{[%evp 22,100,-20,-29,-33,-32,-29,-68,-13,-55,-49,-46,-42,-45,-14,-25,0,0,2,0,0,-201,-205,-174,-80,-76,-55,-32,-24,-27,-26,-26,-34,-24,0,0,0,0,0,0,0,-28,-24,-36,-33,-43,-43,-43,-38,-34,-31,-37,-14,-32,-31,-31,-30,-45,-30,-45,-31,-41,-39,-45,-45,-90,-90,-108,-108,-364,-361,-340,-345,-356,-357,-358,-327,-362,-362,-341,-327]} 1. d4 {[%emt 0:00:20]} Nf6 {[%emt 0:00:13]} 2. c4 {[%emt 0:00:54]} g6 {[%emt 0:00:13]} 3. Nf3 {[%emt 0:00:16]} Bg7 {[%emt 0:00:07]} 4. g3 {[%emt 0:00:06]} O-O {[%emt 0:00:06]} 5. Bg2 {[%emt 0:00:02]} d5 {[%emt 0:00:05]} 6. cxd5 {[%emt 0:00:23]} Nxd5 {[%emt 0:00:05]} 7. e4 {[%emt 0:00:45]} Nb6 {[%emt 0:00:04]} 8. O-O {[%emt 0:00:06]} Nc6 {[%emt 0:00:08]} 9. d5 {[%emt 0:01:42]} Na5 {[%emt 0:00:06]} 10. Nc3 {[%emt 0:01:37]} c6 {[%emt 0:00:12]} 11. dxc6 {[%emt 0:09:56]} Nxc6 {[%emt 0:07:10]} 12. Bf4 {[%emt 0:08:18]} Be6 {[%emt 0:05:45]} 13. Qc1 {[%emt 0:01:54]} Bg4 {[%emt 0:10:55]} 14. Re1 {[%emt 0:29:49]} Qc8 {[%emt 0:20:13]} (14... Rc8 $15) 15. Bh6 {[%emt 0:20:19]} Bxf3 {[%emt 0:08:39]} 16. Bxf3 {[%emt 0:00:02]} Nd4 {[%emt 0:00:09]} 17. Bd1 {[%emt 0:00:05]} e5 {[%emt 0:08:37]} 18. Be3 {[%emt 0:03:41]} (18. Kg2 {is interesting.} Qd7 19. Qg5 Qe6 20. Bxg7 Kxg7 21. Ne2) 18... Rd8 {[%emt 0:03:37]} 19. Kg2 {[%emt 0:03:34]} Qe6 {[%emt 0:00:50]} 20. Bxd4 {[%emt 0:03:09]} exd4 {[%emt 0:01:55]} 21. Na4 {[%emt 0:04:37]} (21. Bb3 $11 Qd6 22. Nd5) 21... d3 $19 {[%emt 0:02:12] aiming for ...d2.} 22. Qf4 {[%emt 0:01:13]} Nxa4 {[%emt 0:04:11]} (22... d2 $19 23. Rf1 Nxa4 24. Bxa4 Rd4 (24... Bxb2 $2 25. Bb3 $19)) 23. Bxa4 $17 {[%emt 0:00:03]} Bxb2 {[%emt 0:00:14] Black is more active.} 24. Bb3 {[%emt 0:01:21]} Qf6 {[%emt 0:13:24]} (24... Qe7 {looks sharper.} 25. Rab1 d2 26. Red1 Bc1) 25. Qxf6 {[%emt 0:00:28]} Bxf6 {[%emt 0:00:02]} 26. Rad1 {[%emt 0:01:03]} d2 {[%emt 0:01:44]} 27. Re3 {[%emt 0:00:48]} Rd4 {[%emt 0:06:52]} 28. Re2 {[%emt 0:02:21][%cal Oe4e5]} Re8 {[%emt 0:00:09]} 29. f3 {[%emt 0:01:47][%cal Bf2f3,Bf3f4][%mdl 32]} Bg5 {[%emt 0:03:15]} 30. f4 {[%emt 0:00:13]} Bh6 {[%emt 0:00:02][%cal Oh6g7]} 31. Kf3 {[%emt 0:02:01]} ({Wrong is} 31. Bd5 $2 Rxd5 32. Rexd2 Rxd2+ 33. Rxd2 Rxe4 $19) 31... Bf8 {[%emt 0:00:01]} 32. Rdxd2 {[%emt 0:01:31] [#]} Rexe4 {[%emt 0:00:28]} 33. Rxd4 {[%emt 0:01:07]} (33. Bd5 Rxd2) 33... Rxd4 $11 {[%emt 0:00:01][%mdl 4096] Endgame. KRB-KRB} 34. Rc2 {[%emt 0:00:18]} Rd7 {[%emt 0:00:26] Prevents Rc7} 35. Ba4 {[%emt 0:01:14]} Re7 {[%emt 0:00:07]} 36. Rd2 {[%emt 0:00:27]} f6 {[%emt 0:02:36]} 37. Rd7 {[%emt 0:00:13]} Rxd7 {[%emt 0:00:06]} 38. Bxd7 $15 {[%emt 0:00:05] KB-KB} Kf7 {[%emt 0:00:04]} 39. Ke4 {[%emt 0:00:42]} Bc5 {[%emt 0:00:32]} 40. Bc8 {[%emt 0:00:39]} b6 {[%emt 0:00:01]} 41. h3 {[%emt 0:00:23]} Ke7 {[%emt 0:01:28]} 42. Kd5 {[%emt 0:00:19]} f5 {[%emt 0:00:36]} 43. g4 {[%emt 0:01:01] [#]} Kf6 $1 {[%emt 0:01:07]} 44. Ba6 {[%emt 0:01:01]} Be3 {[%emt 0:00:37]} 45. g5+ $2 {[%emt 0:00:15][%mdl 8192] Now White is beyond hope.} (45. Bc8 $17) 45... Ke7 $19 {[%emt 0:00:00]} 46. Ke5 {[%emt 0:00:07]} Bc5 {[%emt 0:00:07]} 47. Bc4 {[%emt 0:00:51]} Bd6+ {[%emt 0:00:04]} 48. Kd4 {[%emt 0:00:15]} Bxf4 {[%emt 0:00:01]} 49. h4 {[%emt 0:00:29]} Kf8 {[%emt 0:01:07]} 50. Kd5 {[%emt 0:00:56]} Bg3 {[%emt 0:00:09] Weighted Error Value: White=0.27 (precise) /Black=0.11 (very precise) .  Loses game:     	White=2     	---        Mistake:       	---       	Black=2      Inaccurate:     	White=4     	Black=1      OK:         	White=11    	Black=14     Best:        	White=3     	Black=3      Strong:       	---       	Black=1      Brilliant:      	---       	Black=1} 0-1